Workbook

Sheet Ramp "T" RT- Near
F1: Project Name | H1: CUY-071-10.07 SW
F2: Project # | G2: 114536 | H2: =#REF! ->  | J2: Page | K2: 1 | L2: of | M2: 2
F3: Subject | G3: Guardrail Calcs | J3: Sheet #
F4: Calculated by | G4: SMS | J4: Date | K4: 2023-08-09
F5: Checked by | J5: Date
A8: Project Information:
A9: Roadway | D9: Ramp T
A10: Design Speed (S) | D10: 60 | E10: MPH
A11: Volume (ADT) | D11: 11497 | E11: ADT
A13: Warranting Feature: | D13: 2:1 Slope | H13: Station: | I13: 32726.31 | J13: 14.66 | K13: RT
A15: Analyzing for Adjacent or Opposing Traffic? | F15: Adjacent
A17: Lr = | B17: 300 | C17: ft | D17: (Fig 602-1) | E17: =D10 -> 60 | F17: =E10 -> MPH
A18: Lc = | B18: 40 | C18: ft | D18: (Fig 600-1) | E18: =D10 -> 60 | F18: =E10 -> MPH
A19: Lh = | B19: 14.66 | C19: ft | D19: (Fig 602-1) | F19: CAD
A20: L1 = | B20: 0 | C20: ft | D20: (Fig 602-1)
A21: L2 = | B21: 14.66 | C21: ft | D21: (Fig 301-3 (G)
A22: a = | B22: 7 | D22: (Fig 602-1) | E22: =D10 -> 60 | F22: =E10 -> MPH
A23: b = | B23: 0 | D23: (Fig 602-1) | F23: CAD
A24: b/a = | B24: =B23/B22 -> 0 | D24: (Fig 602-1) | E24: not flared
A26: Is Lh<Lc | B26: =IF(B19<B18,"Yes","No") -> Yes | C26: X (LON) = (Lh+(b/a)L1-L2)/(b/a)+ Lh/Lr) | G26: =ROUNDUP((B19+(B24*B20)-B21)/(B24+(B19/B17)),0) -> 0 | H26: ft
C27: Y = Lh-X(Lh/Lr) | G27: =ROUNDUP(B19-(G26*(B19/B17)),0) -> 15 | H27: ft
A28: Is Lh>Lc | B28: =IF(B19>B18,"Yes","No") -> No | C28: X (LON) = (Lc+(b/a)L1-L2)/(b/a)+ Lc/Lr) | G28: =ROUNDUP((B18+(B24*B20)-B21)/(B24+(B18/B17)),0) -> 191 | H28: ft
A30: Length of Need (LON) point = | D30: =I13+G26 -> 32726.31
A31: Designer Note:
A32: Type of End Terminal (ET): | D32: Type E
D33: Calculated | F33: Actual (use this)
A34: Begin AA = | F34: =F35-12.5 -> 32713.52
A35: End AA E, Begin MGS Guardrail = | D35: =I13-G28 -> 32535.31 | F35: =D36-255 -> 32726.02 | J35: End Guardrail | K35: 32981.02 | P35: 32681.25 | R35: Near RT | V35: Near LT | Y35: Far LT | AB35: Far RT
A36: End MGS Guardrail, Begin BTA = | D36: =K35 -> 32981.02 | F36: =D36 -> 32981.02 | G36: CAD | J36: Begin LON Sta | K36: =I13-G26 -> 32726.31 | P36: 32731.25 | Q36: =+P36-P35 -> 50 | R36: 1 | S36: AA | U36: 32843.5 | AA36: 33445.8 | AB36: 1 | AC36: BTA 2
A37: End BTA | D37: 33013.24 | F37: =D37 -> 33013.24 | P37: 32956.25 | Q37: 225 | R37: 225 | S37: MGS GR | U37: 32918.5 | V37: =+U37-U36 -> 75 | W37: MGS GR | X37: 33538.33 | Y37: =+X37-X38 -> 162.5 | Z37: MGS GR | AA37: 33858.3 | AB37: =+AA37-AA36 -> 412.5 | AC37: MGS GR
P38: 32983.15 | Q38: =+P38-P37 -> 26.9 | R38: 1 | S38: BTA 1 | U38: 32945.4 | V38: 1 | W38: BTA 1 | X38: 33375.83 | Y38: 1 | Z38: BTA 2 | AA38: 33870.8 | AB38: 1 | AC38: Ty T
J39: Length neeeded | K39: =+K35-K36 -> 254.71 | L39: 255
R40: totals (Ramp T) | S40: MGS GR | T40: BTA 1 | U40: BTA 2 | V40: Ty AA | W40: Ty E
S41: =+R37+V37+Y37+AB37 -> 875 | T41: =+R38+V38 -> 2 | U41: =+Y38+AB36 -> 2 | V41: =+R36 -> 1 | W41: =+AB38 -> 1

Sheet Ramp T to I-480 WB
F1: Project Name | H1: ='Ramp "T" RT- Near'!H1 -> CUY-071-10.07 SW
F2: Project # | G2: 114536 | J2: Page | K2: 2 | L2: of | M2: 2
F3: Subject | G3: Guardrail Calcs | J3: Sheet #
F4: Calculated by | G4: SMS | J4: Date | K4: 2023-08-09
F5: Checked by | J5: Date
A8: Project Information:
A9: Roadway
A10: Design Speed (S) | D10: 60 | E10: MPH
A11: Volume (ADT) | D11: 2200 | E11: ADT
A13: Warranting Feature: | D13: Bridge Pier | H13: Station: | K13: RT
A15: Analyzing for Adjacent or Opposing Traffic? | F15: Adjacent
A17: Lr = | B17: 300 | C17: ft | D17: (Fig 602-1) | E17: =D10 -> 60 | F17: =E10 -> MPH
A18: Lc = | B18: 40 | C18: ft | D18: (Fig 600-1) | E18: =D10 -> 60 | F18: =E10 -> MPH
A19: Lh = | B19: 24 | C19: ft | D19: (Fig 602-1) | F19: CAD
A20: L1 = | B20: 0 | C20: ft | D20: (Fig 602-1)
A21: L2 = | B21: 7.5 | C21: ft | D21: (Fig 301-3 (G)
A22: a = | B22: 7 | D22: (Fig 602-1) | E22: =D10 -> 60 | F22: =E10 -> MPH
A23: b = | B23: 1 | D23: (Fig 602-1)
A24: b/a = | B24: =B23/B22 -> 0.1428571429 | D24: (Fig 602-1)
A26: Is Lh<Lc | B26: =IF(B19<B18,"Yes","No") -> Yes | C26: X (LON) = (Lh+(b/a)L1-L2)/(b/a)+ Lh/Lr) | G26: =ROUNDUP((B19+(B24*B20)-B21)/(B24+(B19/B17)),0) -> 75 | H26: ft
C27: Y = Lh-X(Lh/Lr) | G27: =ROUNDUP(B19-(G26*(B19/B17)),0) -> 18 | H27: ft
A28: Is Lh>Lc | B28: =IF(B19>B18,"Yes","No") -> No | C28: X (LON) = (Lc+(b/a)L1-L2)/(b/a)+ Lc/Lr) | G28: =ROUNDUP((B18+(B24*B20)-B21)/(B24+(B18/B17)),0) -> 118 | H28: ft
A30: Length of Need (LON) point = | D30: =I13+G26 -> 75
A32: Type of End Terminal (ET): | D32: Type E
D33: Calculated | F33: Actual (use this)
A34: Begin BTA | D34: Connect to Barrier End Section | F34: 24'-4.75" | L34: EXISTING GUARDRAIL TO REMAIN
A35: End BTA, Begin MGS Guardrail = | D35: One tangent section (12.5') + two radial sections (25') | F35: 37.5' | G35: CAD | J35: Begin LON Sta
A36: End MGS Guardrail, Begin AA = | D36: Use Type E | F36: 50' | J36: End Guardrail
A37: End AA = | D37: Totals: 111'-4.75" > 75' LON
J39: Length neeeded
J40: Begin GR
J41: Begin Ty E AA
